fUST/lending_fUST_20250928
["ID","MTS","AMOUNT","RATE_DAILY","PERIOD"]
[388068223,1758999038544,-999.0,0.00030167,2]
[388068224,1758999038554,-223.516538,0.00030303,60]
[388068225,1758999038563,-3000.0,0.00030306,5]
[388068226,1758999038573,-999.0,0.00030441,2]
[388068227,1758999038583,-2500.0,0.00030532,5]
[388068228,1758999038592,-3500.0,0.00030568,5]
[388068229,1758999038603,-999.0,0.00030715,2]
[388068230,1758999038612,-222.75175895,0.00030745,2]
[388068231,1758999038621,-1854.67670321,0.00030854,5]
[388068232,1758999038631,-999.0,0.00030989,2]
[388068233,1758999038641,-1658.6,0.00031,2]
[388068234,1758999038651,-1000.0,0.0003108,5]
[388068235,1758999038660,-4000.0,0.00031116,5]
[388068236,1758999038670,-153.0,0.00031132,2]
[388068237,1758999038679,-153.0,0.00031132,2]
[388068238,1758999038688,-529.0,0.0003116,3]
[388068239,1758999038698,-823.0,0.0003116,2]
[388068240,1758999038708,-999.0,0.00031263,2]
[388068241,1758999038718,-999.0,0.00031537,2]
[388068242,1758999038728,-4500.0,0.00031664,5]
[388068243,1758999038738,-999.0,0.0003181,2]
[388068244,1758999038748,-1326.59121149,0.00031876,2]
[388068245,1758999038758,-723.53144958,0.00032,120]
[388068246,1758999038767,-999.0,0.00032084,2]
[388068247,1758999038776,-2399.65406369,0.00032204,2]
[388068248,1758999038785,-4657.74474124,0.00032212,5]
[388068249,1758999038795,-723.53144958,0.000323,120]
[388068250,1758999038804,-999.0,0.00032358,2]
[388068251,1758999038813,-160.0,0.00032474,2]
[388068252,1758999038823,-233.76631357,0.00032475,2]
[388068253,1758999038833,-160.0,0.0003248,2]
[388068254,1758999038842,-160.0,0.0003248,2]
[388068255,1758999038852,-723.53144958,0.000326,120]
[388068256,1758999038861,-222.75175895,0.00032609,2]
[388068257,1758999038870,-999.0,0.00032632,2]
[388068258,1758999038879,-616.018372,0.00032877,2]
[388068259,1758999038888,-1658.6,0.000329,14]
[388068260,1758999038898,-999.10768654,0.00032906,2]
[388068261,1758999038907,-280.86432197,0.00032986,30]
[388068262,1758999038915,-1058.1722644,0.00032992,30]
[388068263,1758999038924,-723.53144958,0.00033,120]
[388068264,1758999038933,-723.53144958,0.000333,120]
[388068265,1758999038942,-502.87086378,0.0003345,7]
[388068266,1758999038952,-223.516538,0.00033728,60]
[388068267,1758999038961,-1152.0,0.00033775,2]
[388068268,1758999038970,-500.0,0.00034195,7]
[388068269,1758999038979,-979.0,0.00034246,2]
[388068270,1758999038989,-635.0,0.00034246,2]
[388068271,1758999038998,-2161.0,0.00034246,2]
[388068272,1758999039008,-150.0,0.00034246,2]
[388068273,1758999039018,-215.163,0.00034246,2]
[388068274,1758999039029,-410.0,0.00034246,2]
[388068275,1758999039041,-4588.0,0.00034246,2]
[388068276,1758999039051,-222.75175895,0.00034474,2]
[388068277,1758999039060,-123.66613303,0.00034952,2]
[388068285,1758999039744,-162.33,0.00026331,2]
[388068286,1758999039754,-122.37000001,0.00034952,2]
[388068289,1758999039766,-273.0,0.00034952,2]
[388068319,1758999042970,-150.0,0.00034246,2]
[388068320,1758999042980,-269.13894365,0.00034952,2]
[388068321,1758999042989,-332.55986426,0.0003496,2]
[388068322,1758999042999,-1160.9296368,0.00035606,3]
[388068323,1758999043010,-480.0,0.00035616,9]
[388068324,1758999043020,-480.0,0.00035616,9]
[388068325,1758999043034,-480.0,0.00035616,9]
[388068326,1758999043045,-480.0,0.00035616,9]
[388068327,1758999043055,-500.0,0.00035616,9]
[388068329,1758999043064,-500.0,0.00035616,9]
[388068330,1758999043076,-500.0,0.00035616,9]
[388068331,1758999043085,-500.0,0.00035616,9]
[388068332,1758999043095,-500.0,0.00035616,9]
[388068333,1758999043105,-500.0,0.00035616,9]
[388068334,1758999043114,-500.0,0.00035616,9]
[388068335,1758999043125,-480.0,0.00035616,9]
[388068336,1758999043135,-480.0,0.00035616,9]
[388068337,1758999043144,-500.0,0.00035616,2]
[388068338,1758999043153,-500.0,0.00035616,2]
[388068339,1758999043163,-500.0,0.00035616,2]
[388068340,1758999043173,-500.0,0.00035616,2]
[388068341,1758999043183,-480.0,0.00035616,9]
[388068342,1758999043192,-480.0,0.00035616,9]
[388068343,1758999043202,-103.81488036,0.00035616,9]
[388068344,1758999043219,-376.18511964,0.00035616,9]
[388068345,1758999043228,-480.0,0.00035616,9]
[388068346,1758999043238,-480.0,0.00035616,9]
[388068347,1758999043247,-83.60161037,0.00035616,9]
[388068349,1758999045767,-396.82385052,0.00035616,9]
[388068350,1758999045777,-643.66,0.00035616,9]
[388068351,1758999045786,-480.0,0.00035616,9]
[388068352,1758999045795,-480.0,0.00035616,9]
[388068353,1758999045805,-181.91414948,0.00035616,9]
[388068354,1758999045818,-298.08585052,0.00035616,9]
[388068355,1758999045827,-272.11414966,0.00035616,9]
[388068356,1758999046238,-207.88585034,0.00035616,9]
[388068357,1758999046247,-480.0,0.00035616,9]
[388068358,1758999046257,-480.0,0.00035616,9]
[388068359,1758999046267,-480.0,0.00035616,9]
[388068360,1758999046277,-480.0,0.00035616,9]
[388068361,1758999046286,-480.0,0.00035616,9]
[388068362,1758999046295,-480.0,0.00035616,9]
[388068363,1758999046305,-489.90190692,0.00035616,9]
[388068364,1758999046315,-480.0,0.00035616,9]
[388068365,1758999046324,-480.0,0.00035616,9]
[388068366,1758999046334,-480.0,0.00035616,9]
[388068367,1758999046343,-480.0,0.00035616,9]
[388068368,1758999046353,-480.0,0.00035616,9]
[388068369,1758999046363,-480.0,0.00035616,9]
[388068370,1758999046373,-480.0,0.00035616,9]
[388068371,1758999046393,-480.0,0.00035616,9]
[388068372,1758999046406,-126.81185397,0.00035616,9]
[388068373,1758999046421,-353.18814603,0.00035616,9]
[388068374,1758999046432,-480.0,0.00035616,9]
[388068375,1758999046442,-487.46694073,0.00035616,9]
[388068376,1758999046453,-480.0,0.00035616,9]
[388068377,1758999046464,-480.0,0.00035616,9]
[388068378,1758999046475,-480.0,0.00035616,9]
[388068379,1758999046487,-480.0,0.00035616,9]
[388068380,1758999046498,-1350.59,0.00035616,9]
[388068381,1758999046508,-612.61,0.00035616,9]
[388068382,1758999046519,-284.65913702,0.00035616,9]
[388068383,1758999046533,-195.34086298,0.00035616,9]
[388068384,1758999046544,-480.0,0.00035616,9]
[388068385,1758999046554,-480.0,0.00035616,9]
[388068386,1758999046565,-480.0,0.00035616,9]
[388068387,1758999046575,-1051.11,0.00035616,9]
[388068388,1758999046585,-480.0,0.00035616,9]
[388068389,1758999046596,-480.0,0.00035616,9]
[388068390,1758999046607,-945.87,0.00035616,9]
[388068391,1758999046618,-480.0,0.00035616,9]
[388068392,1758999046628,-480.0,0.00035616,9]
[388068393,1758999046639,-480.0,0.00035616,9]
[388068394,1758999046649,-484.07864859,0.00035616,9]
[388068395,1758999046659,-480.0,0.00035616,9]
[388068396,1758999046669,-634.86,0.00035616,9]
[388068397,1758999046679,-480.0,0.00035616,9]
[388068398,1758999046689,-1066.54574229,0.00035616,9]
[388068399,1758999046703,-741.57425771,0.00035616,9]
[388068400,1758999046714,-483.18757761,0.00035616,9]
[388068401,1758999046724,-487.55287523,0.00035616,9]
[388068402,1758999046735,-480.0,0.00035616,9]
[388068403,1758999046745,-480.0,0.00035616,9]
[388068404,1758999046755,-482.06689307,0.00035616,9]
[388068405,1758999046765,-480.0,0.00035616,9]
[388068406,1758999046775,-480.0,0.00035616,9]
[388068407,1758999046785,-480.0,0.00035616,9]
[388068408,1758999046795,-480.0,0.00035616,9]
[388068409,1758999046805,-480.0,0.00035616,9]
[388068410,1758999046815,-480.0,0.00035616,9]
[388068411,1758999046826,-480.0,0.00035616,9]
[388068412,1758999046836,-480.93392864,0.00035616,2]
[388068413,1758999046846,-480.0,0.00035616,9]
[388068414,1758999046856,-480.0,0.00035616,9]
[388068415,1758999046866,-480.0,0.00035616,9]
[388068416,1758999046876,-480.0,0.00035616,9]
[388068417,1758999046886,-480.0,0.00035616,9]
[388068418,1758999046896,-481.61208462,0.00035616,9]
[388068419,1758999046906,-1415.28,0.00035616,9]
[388068420,1758999046916,-480.0,0.00035616,9]
[388068421,1758999046926,-200.0,0.00035616,9]
[388068422,1758999046936,-480.0,0.00035616,9]
[388068423,1758999046946,-480.0,0.00035616,9]
[388068424,1758999046957,-480.0,0.00035616,9]
[388068425,1758999046967,-480.0,0.00035616,9]
[388068426,1758999046977,-514.11,0.00035616,9]
[388068427,1758999046987,-480.0,0.00035616,9]
[388068428,1758999046998,-480.0,0.00035616,9]
[388068429,1758999047009,-480.0,0.00035616,9]
[388068430,1758999047019,-480.0,0.00035616,9]
[388068431,1758999047033,-481.82001868,0.00035616,9]
[388068432,1758999047045,-480.0,0.00035616,9]
[388068433,1758999047055,-480.0,0.00035616,9]
[388068434,1758999047066,-480.0,0.00035616,9]
[388068435,1758999047080,-480.0,0.00035616,9]
[388068436,1758999047330,-480.0,0.00035616,9]
[388068437,1758999047346,-480.0,0.00035616,9]
[388068438,1758999047356,-480.0,0.00035616,9]
[388068439,1758999047366,-480.0,0.00035616,9]
[388068440,1758999047376,-480.0,0.00035616,9]
[388068441,1758999047386,-480.0,0.00035616,9]
[388068442,1758999047398,-480.0,0.00035616,9]
[388068443,1758999047408,-480.0,0.00035616,9]
[388068444,1758999047417,-480.0,0.00035616,9]
[388068445,1758999047427,-480.0,0.00035616,9]
[388068446,1758999047437,-480.0,0.00035616,9]
[388068447,1758999047447,-480.0,0.00035616,9]
[388068448,1758999047457,-480.0,0.00035616,9]
[388068449,1758999047467,-480.0,0.00035616,9]
[388068450,1758999047476,-480.0,0.00035616,9]
[388068451,1758999047486,-481.94642854,0.00035616,9]
[388068452,1758999047496,-480.0,0.00035616,9]
[388068453,1758999047505,-664.82,0.00035616,9]
[388068454,1758999047515,-480.0,0.00035616,9]
[388068455,1758999047525,-620.21,0.00035616,9]
[388068456,1758999047534,-480.0,0.00035616,9]
[388068457,1758999047544,-480.0,0.00035616,9]
[388068458,1758999047553,-480.0,0.00035616,9]
[388068459,1758999047563,-860.58,0.00035616,9]
[388068460,1758999047572,-480.0,0.00035616,9]
[388068461,1758999047582,-480.0,0.00035616,9]
[388068462,1758999047592,-480.0,0.00035616,9]
[388068463,1758999047602,-480.0,0.00035616,9]
[388068464,1758999047612,-342.35565529,0.00035616,9]
[388068465,1758999047621,-480.0,0.00035616,9]
[388068466,1758999047630,-480.0,0.00035616,9]
[388068467,1758999047640,-831.21,0.00035616,9]
[388068468,1758999047650,-480.0,0.00035616,9]
[388068469,1758999047660,-480.0,0.00035616,9]
[388068470,1758999047670,-1000.0,0.00035616,9]
[388068471,1758999047680,-480.0,0.00035616,9]
[388068472,1758999047690,-500.0,0.00035616,9]
[388068473,1758999047700,-480.0,0.00035616,9]
[388068474,1758999047710,-480.0,0.00035616,9]
[388068475,1758999047720,-527.7,0.00035616,9]
[388068476,1758999047729,-480.0,0.00035616,9]
[388068477,1758999047739,-480.0,0.00035616,9]
[388068478,1758999047749,-480.0,0.00035616,9]
[388068479,1758999047760,-461.56508481,0.00035616,9]
[388068480,1758999047769,-480.0,0.00035616,9]
[388068481,1758999047779,-480.0,0.00035616,9]
[388068482,1758999047789,-480.0,0.00035616,9]
[388068483,1758999047798,-480.0,0.00035616,9]
[388068484,1758999047809,-480.0,0.00035616,9]
[388068485,1758999047818,-480.0,0.00035616,9]
[388068486,1758999047828,-480.0,0.00035616,9]
[388068487,1758999047838,-480.0,0.00035616,9]
[388068488,1758999047847,-480.0,0.00035616,9]
[388068489,1758999047857,-480.0,0.00035616,9]
[388068490,1758999047867,-613.06,0.00035616,9]
[388068491,1758999047876,-480.0,0.00035616,9]
[388068492,1758999047886,-458.0559858,0.00035616,9]
[388068493,1758999047895,-480.0,0.00035616,9]
[388068494,1758999047905,-480.0,0.00035616,9]
[388068495,1758999047915,-480.0,0.00035616,9]
[388068496,1758999047924,-549.96,0.00035616,9]
[388068497,1758999047934,-480.0,0.00035616,9]
[388068498,1758999047944,-480.0,0.00035616,9]
[388068499,1758999047953,-611.12,0.00035616,9]
[388068500,1758999047964,-150.04076662,0.00035616,9]
[388068501,1758999047974,-448.78354047,0.00035616,9]
[388068502,1758999047983,-705.64,0.00035616,9]
[388068503,1758999047993,-480.67406913,0.00035616,9]
[388068504,1758999048003,-480.0,0.00035616,9]
[388068505,1758999048012,-949.59,0.00035616,9]
[388068506,1758999048022,-480.0,0.00035616,9]
[388068507,1758999048038,-536.9,0.00035616,9]
[388068508,1758999048057,-480.0,0.00035616,9]
[388068509,1758999048067,-480.0,0.00035616,9]
[388068510,1758999048076,-480.0,0.00035616,9]
[388068511,1758999048086,-480.0,0.00035616,9]
[388068512,1758999048096,-1281.51,0.00035616,9]
[388068513,1758999048105,-500.0,0.00035616,2]
[388068514,1758999048115,-500.0,0.00035616,2]
[388068515,1758999048125,-480.0,0.00035616,9]
[388068516,1758999048134,-500.0,0.00035616,2]
[388068517,1758999048143,-500.0,0.00035616,2]
[388068518,1758999048152,-1533.19,0.00035616,9]
[388068519,1758999048162,-479.37184423,0.00035616,9]
[388068520,1758999048171,-633.52,0.00035616,9]
[388068521,1758999048180,-480.0,0.00035616,9]
[388068522,1758999048189,-581.59,0.00035616,9]
[388068523,1758999048199,-480.0,0.00035616,9]
[388068524,1758999048208,-480.0,0.00035616,9]
[388068525,1758999048217,-480.0,0.00035616,9]
[388068526,1758999048227,-855.42,0.00035616,9]
[388068527,1758999048236,-480.0,0.00035616,9]
[388068528,1758999048246,-480.0,0.00035616,9]
[388068529,1758999048255,-480.0,0.00035616,9]
[388068530,1758999048264,-480.0,0.00035616,9]
[388068531,1758999048274,-483.99853273,0.00035616,9]
[388068532,1758999048283,-480.0,0.00035616,9]
[388068533,1758999048292,-480.0,0.00035616,9]
[388068534,1758999048302,-480.0,0.00035616,9]
[388068535,1758999048311,-480.0,0.00035616,9]
[388068536,1758999048320,-480.0,0.00035616,9]
[388068537,1758999048330,-482.09304648,0.00035616,9]
[388068538,1758999048339,-1807.96,0.00035616,9]
[388068539,1758999048349,-480.0,0.00035616,9]
[388068540,1758999048359,-480.0,0.00035616,9]
[388068541,1758999048368,-480.0,0.00035616,9]
[388068542,1758999048379,-581.24,0.00035616,9]
[388068543,1758999048389,-913.27,0.00035616,9]
[388068544,1758999048401,-480.0,0.00035616,9]
[388068545,1758999048410,-914.48,0.00035616,9]
[388068546,1758999048420,-751.04,0.00035616,9]
[388068547,1758999048430,-480.0,0.00035616,9]
[388068548,1758999048439,-899.9,0.00035616,9]
[388068549,1758999048449,-480.0,0.00035616,9]
[388068550,1758999048459,-480.0,0.00035616,9]
[388068551,1758999048468,-480.0,0.00035616,9]
[388068552,1758999048478,-283.6866343,0.00035616,9]
[388068553,1758999048488,-153.04720755,0.00035616,9]
[388068554,1758999048498,-480.0,0.00035616,9]
[388068555,1758999048508,-480.0,0.00035616,9]
[388068556,1758999048518,-979.04,0.00035616,9]
[388068557,1758999048528,-480.0,0.00035616,9]
[388068558,1758999048538,-480.0,0.00035616,9]
[388068559,1758999048548,-480.0,0.00035616,9]
[388068560,1758999048558,-480.0,0.00035616,9]
[388068561,1758999048567,-1004.82,0.00035616,9]
[388068562,1758999048577,-480.0,0.00035616,9]
[388068563,1758999048586,-514.08073379,0.00035616,9]
[388068564,1758999048596,-471.73184863,0.00035616,9]
[388068565,1758999048606,-807.25,0.00035616,9]
[388068566,1758999048616,-1196.73,0.00035616,9]
[388068567,1758999048626,-403.41640514,0.00035616,9]
[388068568,1758999048635,-480.0,0.00035616,9]
[388068569,1758999048648,-933.31,0.00035616,9]
[388068570,1758999048659,-1465.15,0.00035616,9]
[388068571,1758999048669,-480.0,0.00035616,9]
[388068572,1758999048678,-480.0,0.00035616,9]
[388068573,1758999048688,-480.0,0.00035616,9]
[388068574,1758999048702,-594.84,0.00035616,9]
[388068575,1758999048712,-187.48586694,0.00035616,9]
[388068576,1758999048723,-480.0,0.00035616,9]
[388068577,1758999048734,-480.0,0.00035616,9]
[388068578,1758999048744,-480.0,0.00035616,9]
[388068579,1758999048754,-1985.22,0.00035616,9]
[388068580,1758999048765,-585.3,0.00035616,9]
[388068581,1758999048775,-480.0,0.00035616,9]
[388068582,1758999048785,-585.06,0.00035616,9]
[388068583,1758999048794,-480.0,0.00035616,9]
[388068584,1758999048804,-728.85,0.00035616,9]
[388068585,1758999048814,-684.17,0.00035616,9]
[388068586,1758999048823,-540.56,0.00035616,9]
[388068587,1758999048833,-480.0,0.00035616,9]
[388068588,1758999048842,-1574.34,0.00035616,9]
[388068589,1758999048853,-1062.59,0.00035616,9]
[388068590,1758999048862,-1716.0,0.00035616,9]
[388068591,1758999048871,-480.0,0.00035616,9]
[388068592,1758999048880,-480.0,0.00035616,9]
[388068593,1758999048889,-480.0,0.00035616,9]
[388068594,1758999048899,-353.81232187,0.00035616,9]
[388068595,1758999048908,-480.0,0.00035616,9]
[388068596,1758999048917,-480.0,0.00035616,9]
[388068597,1758999048927,-480.0,0.00035616,9]
[388068598,1758999048936,-491.15562936,0.00035616,9]
[388068599,1758999048946,-480.0,0.00035616,9]
[388068600,1758999048955,-386.33435114,0.00035616,9]
[388068601,1758999048966,-497.43860265,0.00035616,9]
[388068602,1758999048975,-482.38716324,0.00035616,9]
[388068603,1758999048985,-480.0,0.00035616,9]
[388068604,1758999048994,-598.8,0.00035616,9]
[388068605,1758999049004,-481.72443208,0.00035616,9]
[388068606,1758999049013,-486.10320963,0.00035616,9]
[388068607,1758999049022,-480.0,0.00035616,9]
[388068608,1758999049036,-480.0,0.00035616,9]
[388068609,1758999049046,-480.0,0.00035616,9]
[388068610,1758999049055,-486.22,0.00035616,9]
[388068611,1758999049065,-487.23102565,0.00035616,9]
[388068612,1758999049074,-930.89,0.00035616,9]
[388068613,1758999049083,-346.81480943,0.00035616,9]
[388068614,1758999049092,-491.96682792,0.00035616,9]
[388068615,1758999049104,-480.0,0.00035616,9]
[388068616,1758999049114,-577.36,0.00035616,9]
[388068617,1758999049123,-1055.02,0.00035616,9]
[388068618,1758999049132,-480.0,0.00035616,9]
[388068619,1758999049142,-485.11327729,0.00035616,9]
[388068620,1758999049151,-480.0,0.00035616,9]
[388068621,1758999049161,-480.0,0.00035616,9]
[388068622,1758999049171,-480.0,0.00035616,9]
[388068623,1758999049180,-480.0,0.00035616,9]
[388068624,1758999049190,-480.0,0.00035616,9]
[388068625,1758999049199,-480.0,0.00035616,7]
[388068626,1758999049209,-480.0,0.00035616,9]
[388068627,1758999049219,-748.06,0.00035616,9]
[388068628,1758999049229,-480.0,0.00035616,9]
[388068629,1758999049239,-861.88,0.00035616,9]
[388068630,1758999049249,-1075.28,0.00035616,9]
[388068631,1758999049259,-868.1,0.00035616,9]
[388068632,1758999049269,-480.0,0.00035616,9]
[388068633,1758999049278,-4479.8,0.00035616,9]
[388068634,1758999049288,-480.0,0.00035616,9]
[388068635,1758999049298,-480.0,0.00035616,9]
[388068636,1758999049308,-480.0,0.00035616,9]
[388068637,1758999049317,-480.0,0.00035616,9]
[388068638,1758999049327,-480.0,0.00035616,9]
[388068639,1758999049337,-480.0,0.00035616,9]
[388068640,1758999049347,-483.11713183,0.00035616,9]
[388068641,1758999049357,-480.0,0.00035616,9]
[388068642,1758999049367,-500.0,0.00035616,30]
[388068643,1758999049376,-480.0,0.00035616,9]
[388068644,1758999049386,-480.0,0.00035616,9]
[388068645,1758999049395,-509.19,0.00035616,9]
[388068646,1758999049404,-480.0,0.00035616,9]
[388068647,1758999049414,-480.0,0.00035616,9]
[388068648,1758999049423,-480.0,0.00035616,9]
[388068649,1758999049433,-480.0,0.00035616,9]
[388068650,1758999049443,-480.0,0.00035616,9]
[388068651,1758999049452,-480.0,0.00035616,9]
[388068652,1758999049463,-3156.92,0.00035616,9]
[388068653,1758999049472,-480.0,0.00035616,9]
[388068654,1758999049481,-480.0,0.00035616,9]
[388068655,1758999049491,-500.0,0.00035616,9]
[388068656,1758999049500,-500.0,0.00035616,9]
[388068657,1758999049510,-480.0,0.00035616,9]
[388068658,1758999049519,-500.0,0.00035616,9]
[388068659,1758999049529,-488.37087467,0.00035616,9]
[388068660,1758999049538,-500.0,0.00035616,9]
[388068661,1758999049547,-500.0,0.00035616,9]
[388068662,1758999049557,-480.0,0.00035616,9]
[388068663,1758999049566,-500.0,0.00035616,9]
[388068664,1758999049575,-500.0,0.00035616,9]
[388068665,1758999049585,-500.0,0.00035616,9]
[388068666,1758999049595,-500.0,0.00035616,9]
[388068667,1758999049604,-1661.69,0.00035616,9]
[388068668,1758999049614,-480.0,0.00035616,9]
[388068669,1758999049624,-8758.01,0.00035616,9]
[388068670,1758999049633,-480.0,0.00035616,9]
[388068671,1758999049643,-480.0,0.00035616,9]
[388068672,1758999049652,-480.0,0.00035616,9]
[388068673,1758999049662,-480.0,0.00035616,9]
[388068674,1758999049672,-480.0,0.00035616,9]
[388068675,1758999049681,-480.0,0.00035616,9]
[388068676,1758999049748,-480.0,0.00035616,9]
[388068677,1758999049758,-480.0,0.00035616,9]
[388068678,1758999049768,-480.0,0.00035616,9]
[388068679,1758999049777,-480.0,0.00035616,9]
[388068680,1758999049786,-482.44447447,0.00035616,9]
[388068681,1758999049795,-529.8,0.00035616,9]
[388068682,1758999049804,-480.0,0.00035616,9]
[388068683,1758999049814,-775.37,0.00035616,9]
[388068684,1758999049823,-1446.26,0.00035616,9]
[388068685,1758999049832,-480.0,0.00035616,9]
[388068686,1758999049842,-485.67902954,0.00035616,9]
[388068687,1758999049851,-480.0,0.00035616,9]
[388068688,1758999049860,-480.0,0.00035616,9]
[388068689,1758999049870,-260.67477257,0.00035616,9]
[388068690,1758999049879,-480.0,0.00035616,9]
[388068691,1758999049888,-480.0,0.00035616,9]
[388068692,1758999049898,-480.0,0.00035616,9]
[388068693,1758999049907,-480.0,0.00035616,9]
[388068694,1758999049917,-1127.12,0.00035616,9]
[388068695,1758999049927,-902.72,0.00035616,9]
[388068696,1758999049936,-1535.71,0.00035616,9]
[388068697,1758999049945,-480.0,0.00035616,9]
[388068698,1758999049953,-480.0,0.00035616,9]
[388068699,1758999049963,-498.40009845,0.00035616,9]
[388068700,1758999049972,-588.88,0.00035616,9]
[388068701,1758999049981,-480.0,0.00035616,9]
[388068702,1758999049989,-2464.21,0.00035616,9]
[388068703,1758999049997,-17224.88,0.00035616,9]
[388068704,1758999050005,-480.0,0.00035616,9]
[388068705,1758999050016,-480.0,0.00035616,9]
[388068706,1758999050025,-1083.42,0.00035616,9]
[388068707,1758999050039,-718.98,0.00035616,9]
[388068708,1758999050048,-480.0,0.00035616,9]
[388068709,1758999050057,-481.20134294,0.00035616,9]
[388068710,1758999050066,-480.0,0.00035616,9]
[388068711,1758999050077,-1277.04,0.00035616,9]
[388068712,1758999050086,-500.0,0.00035616,9]
[388068713,1758999050095,-480.0,0.00035616,9]
[388068714,1758999050105,-480.0,0.00035616,9]
[388068715,1758999050116,-3410.46,0.00035616,9]
[388068716,1758999050125,-480.0,0.00035616,9]
[388068717,1758999050134,-1094.18,0.00035616,9]
[388068718,1758999050144,-480.0,0.00035616,9]
[388068719,1758999050153,-1093.89,0.00035616,9]
[388068720,1758999050169,-1351.12,0.00035616,9]
[388068721,1758999050183,-480.0,0.00035616,9]
[388068722,1758999050192,-480.0,0.00035616,9]
[388068723,1758999050202,-1560.03,0.00035616,9]
[388068724,1758999050211,-480.0,0.00035616,9]
[388068725,1758999050221,-480.0,0.00035616,9]
[388068726,1758999050230,-1003.6,0.00035616,9]
[388068727,1758999050240,-809.25,0.00035616,9]
[388068728,1758999050249,-480.0,0.00035616,9]
[388068729,1758999050259,-480.0,0.00035616,9]
[388068730,1758999050268,-801.04,0.00035616,9]
[388068731,1758999050278,-554.18,0.00035616,9]
[388068732,1758999050287,-760.75,0.00035616,9]
[388068733,1758999050298,-7837.45,0.00035616,9]
[388068734,1758999050308,-480.0,0.00035616,9]
[388068735,1758999050319,-480.0,0.00035616,9]
[388068736,1758999050330,-703.89,0.00035616,9]
[388068737,1758999050339,-480.0,0.00035616,9]
[388068738,1758999050348,-480.0,0.00035616,9]
[388068739,1758999050358,-480.0,0.00035616,9]
[388068740,1758999050367,-480.0,0.00035616,9]
[388068741,1758999050377,-480.0,0.00035616,9]
[388068742,1758999050386,-3847.49,0.00035616,9]
[388068743,1758999050396,-6362.81436959,0.00035616,9]
[388068745,1758999336681,167.243571,0.00015555,2]
[388068746,1758999368926,834.3094557,0.00025,30]
[388068747,1758999457810,300000.0,0.00033141,60]
[388068749,1758999785467,160.0,0.00023831,2]
[388068750,1758999836050,5000.0,0.00023831,2]
[388068751,1758999858431,4840.01,0.00023831,2]
[388068752,1758999858458,159.99,0.00023831,2]
[388068768,1758999881731,5000.0,0.00023831,2]
[388068769,1758999901998,200000.0,0.00033175,120]
[388068770,1758999904048,5000.0,0.00023831,2]
[388068771,1758999927902,5000.0,0.00023831,2]
[388068772,1758999950954,0.01,0.00023831,2]
[388068773,1758999950976,4999.99,0.00023831,2]
[388068774,1758999973258,5000.0,0.00023831,2]
[388068775,1758999995912,0.02,0.00023831,2]
[388068776,1758999995935,4999.98,0.00023831,2]
[388068777,1759000027082,-181.00316241,0.00024076,2]
[388068778,1759000072182,5000.0,0.00023831,2]
[388068779,1759000094719,0.03,0.00023831,2]